fUSD/lending_fUSD_20250302
["ID","MTS","AMOUNT","RATE_DAILY","PERIOD"]
[355172795,1740943867644,-500.0,0.00025479,2]
[355172796,1740943867654,-500.0,0.00025479,2]
[355172797,1740943867664,-500.0,0.00025479,2]
[355172798,1740943867682,-1046.76,0.00025479,2]
[355172799,1740943867698,-500.0,0.00025479,2]
[355172800,1740943867709,-500.0,0.00025479,2]
[355172801,1740943867720,-326.68907053,0.00025479,2]
[355172802,1740943867731,-500.0,0.00025479,2]
[355172803,1740943867742,-589.18,0.00025479,2]
[355172804,1740943867754,-666.68,0.00025479,2]
[355172805,1740943867764,-500.0,0.00025479,2]
[355172806,1740943867775,-500.0,0.00025479,2]
[355172807,1740943867788,-500.0,0.00025479,2]
[355172808,1740943867799,-500.0,0.00025479,2]
[355172809,1740943867809,-500.0,0.00025479,2]
[355172810,1740943867820,-500.0,0.00025479,2]
[355172811,1740943867831,-500.0,0.00025479,2]
[355172812,1740943867842,-679.94,0.00025479,2]
[355172813,1740943867853,-500.0,0.00025479,2]
[355172814,1740943867864,-500.0,0.00025479,2]
[355172815,1740943867875,-500.0,0.00025479,2]
[355172816,1740943867886,-679.32,0.00025479,2]
[355172817,1740943867896,-500.0,0.00025479,2]
[355172818,1740943867907,-500.0,0.00025479,2]
[355172819,1740943867919,-500.0,0.00025479,2]
[355172820,1740943867929,-940.25,0.00025479,2]
[355172821,1740943867940,-789.14,0.00025479,2]
[355172822,1740943867950,-280.41927316,0.00025479,2]
[355172823,1740943867961,-773.69,0.00025479,2]
[355172824,1740943867972,-405.91,0.00025481,2]
[355172825,1740943867983,-3187.23159611,0.00025555,4]
[355172826,1740943868483,-655.16078421,0.00025555,4]
[355172827,1740943868497,-919.90419306,0.00025555,4]
[355172828,1740943868508,-778.42701636,0.0002558,2]
[355172829,1740943868518,-405.91,0.00025607,2]
[355172830,1740943868530,-405.91,0.00025734,2]
[355172831,1740943868541,-3547.34,0.00025752,2]
[355172832,1740943868551,-151.0,0.00025753,7]
[355172833,1740943868562,-151.0,0.00025753,7]
[355172834,1740943868572,-391.683792,0.00025753,2]
[355172835,1740943868583,-191.324349,0.00025753,2]
[355172836,1740943868595,-244.77357429,0.00025753,2]
[355172837,1740943868610,-386.70642571,0.00025753,2]
[355172838,1740943868623,-500.0,0.00025753,2]
[355172839,1740943868634,-500.0,0.00025753,2]
[355172840,1740943868645,-17.46491429,0.00025753,2]
[355172841,1740943869181,-226.6130227,0.00025753,2]
[355172842,1740943869191,-500.0,0.00025753,2]
[355172843,1740943869201,-247.17,0.00025753,2]
[355172844,1740943869211,-621.99084,0.00025753,2]
[355172845,1740943869220,-500.0,0.00025753,2]
[355172846,1740943869230,-500.0,0.00025753,2]
[355172847,1740943869245,-413.73360742,0.00025753,2]
[355172848,1740943869254,-500.0,0.00025753,2]
[355172849,1740943869264,-512.31,0.00025753,2]
[355172850,1740943869274,-500.0,0.00025753,2]
[355172851,1740943869286,-500.0,0.00025753,2]
[355172852,1740943869296,-500.0,0.00025753,2]
[355172853,1740943869307,-500.0,0.00025753,2]
[355172854,1740943869317,-500.0,0.00025753,2]
[355172855,1740943869327,-500.0,0.00025753,2]
[355172856,1740943869337,-500.0,0.00025753,2]
[355172857,1740943869346,-500.0,0.00025753,2]
[355172858,1740943869357,-500.0,0.00025753,2]
[355172859,1740943869367,-4000.0,0.00025753,2]
[355172860,1740943869377,-500.0,0.00025753,2]
[355172861,1740943869387,-500.0,0.00025753,2]
[355172862,1740943869398,-341.88,0.00025753,2]
[355172863,1740943869408,-289.37370323,0.00025753,2]
[355172864,1740943869418,-500.0,0.00025753,2]
[355172865,1740943869428,-500.0,0.00025753,2]
[355172866,1740943869438,-500.0,0.00025753,2]
[355172867,1740943869448,-500.0,0.00025753,2]
[355172868,1740943869458,-500.0,0.00025753,2]
[355172869,1740943869471,-500.0,0.00025753,2]
[355172870,1740943869481,-500.0,0.00025753,2]
[355172871,1740943869491,-500.0,0.00025753,2]
[355172872,1740943869501,-500.0,0.00025753,2]
[355172873,1740943869510,-500.0,0.00025753,2]
[355172874,1740943869520,-408.64015845,0.00025753,2]
[355172875,1740943869529,-500.0,0.00025753,2]
[355172876,1740943869540,-500.0,0.00025753,2]
[355172877,1740943869549,-500.0,0.00025753,2]
[355172878,1740943869559,-500.0,0.00025753,2]
[355172879,1740943869569,-500.0,0.00025753,2]
[355172880,1740943869578,-500.0,0.00025753,2]
[355172881,1740943869588,-500.0,0.00025753,2]
[355172882,1740943869598,-500.0,0.00025753,2]
[355172883,1740943869608,-500.0,0.00025753,2]
[355172884,1740943869618,-550.66,0.00025753,2]
[355172885,1740943869629,-345.81338174,0.00025753,2]
[355172886,1740943869639,-500.0,0.00025753,2]
[355172887,1740943869649,-500.0,0.00025753,2]
[355172888,1740943869659,-500.0,0.00025753,2]
[355172889,1740943869669,-500.0,0.00025753,2]
[355172890,1740943869679,-500.0,0.00025753,2]
[355172891,1740943869689,-500.0,0.00025753,2]
[355172892,1740943869700,-500.0,0.00025753,2]
[355172893,1740943869709,-500.0,0.00025753,2]
[355172894,1740943869719,-500.0,0.00025753,2]
[355172895,1740943869729,-500.0,0.00025753,2]
[355172896,1740943869739,-500.0,0.00025753,2]
[355172897,1740943869750,-500.0,0.00025753,2]
[355172898,1740943869760,-500.0,0.00025753,2]
[355172899,1740943869770,-500.0,0.00025753,2]
[355172900,1740943869781,-619.01,0.00025753,2]
[355172901,1740943869792,-500.0,0.00025753,2]
[355172902,1740943869802,-500.0,0.00025753,2]
[355172903,1740943869813,-500.0,0.00025753,2]
[355172904,1740943869823,-500.0,0.00025753,2]
[355172905,1740943869833,-500.0,0.00025753,2]
[355172906,1740943869842,-500.0,0.00025753,2]
[355172907,1740943869853,-500.0,0.00025753,2]
[355172908,1740943869863,-500.0,0.00025753,2]
[355172909,1740943869874,-500.0,0.00025753,2]
[355172910,1740943869884,-572.34,0.00025753,2]
[355172911,1740943869894,-500.0,0.00025753,2]
[355172912,1740943869904,-500.48,0.00025753,2]
[355172913,1740943869915,-500.0,0.00025753,2]
[355172914,1740943869937,-500.0,0.00025753,2]
[355172915,1740943869950,-525.69,0.00025753,2]
[355172916,1740943869961,-500.0,0.00025753,2]
[355172917,1740943869973,-500.0,0.00025753,2]
[355172918,1740943869984,-500.0,0.00025753,2]
[355172919,1740943869995,-500.0,0.00025753,2]
[355172920,1740943870006,-500.0,0.00025753,2]
[355172921,1740943870018,-500.0,0.00025753,2]
[355172922,1740943870032,-500.0,0.00025753,2]
[355172923,1740943870043,-500.0,0.00025753,2]
[355172924,1740943870055,-889.51,0.00025753,2]
[355172925,1740943870067,-1454.29,0.00025753,2]
[355172926,1740943870079,-2697.14,0.00025753,2]
[355172927,1740943870091,-1113.19,0.00025753,2]
[355172928,1740943870103,-642.35,0.00025753,2]
[355172929,1740943870115,-541.12,0.00025753,2]
[355172930,1740943870126,-1050.18,0.00025753,2]
[355172931,1740943870138,-274.86,0.00025753,2]
[355172932,1740943870150,-1814.48,0.00025753,2]
[355172933,1740943870161,-548.89,0.00025753,2]
[355172934,1740943870172,-500.0,0.00025753,2]
[355172935,1740943870182,-1228.01,0.00025753,2]
[355172936,1740943870193,-528.5,0.00025753,2]
[355172937,1740943870203,-500.0,0.00025753,2]
[355172938,1740943870214,-540.36,0.00025753,2]
[355172939,1740943870226,-500.0,0.00025753,2]
[355172940,1740943870238,-636.81,0.00025753,2]
[355172941,1740943870248,-500.0,0.00025753,2]
[355172942,1740943870259,-785.35,0.00025753,2]
[355172943,1740943870271,-1133.26,0.00025753,2]
[355172944,1740943870281,-500.0,0.00025753,2]
[355172945,1740943870291,-1458.58,0.00025753,2]
[355172946,1740943870302,-581.88,0.00025753,2]
[355172947,1740943870313,-500.0,0.00025753,2]
[355172948,1740943870323,-907.66,0.00025753,2]
[355172949,1740943870334,-235.14,0.00025753,2]
[355172950,1740943870345,-1024.84,0.00025753,2]
[355172951,1740943870355,-867.23,0.00025753,2]
[355172952,1740943870365,-615.8,0.00025753,2]
[355172953,1740943870382,-500.0,0.00025753,2]
[355172954,1740943870394,-500.0,0.00025753,2]
[355172955,1740943870404,-500.0,0.00025753,2]
[355172956,1740943870415,-908.11,0.00025753,2]
[355172957,1740943870425,-746.51,0.00025753,2]
[355172958,1740943870764,-500.0,0.00025753,2]
[355172959,1740943870774,-264.88,0.00025753,2]
[355172960,1740943870785,-500.0,0.00025753,2]
[355172961,1740943870795,-752.29,0.00025753,2]
[355172962,1740943870804,-999.46,0.00025753,2]
[355172963,1740943870814,-500.0,0.00025753,2]
[355172964,1740943870824,-1143.5,0.00025753,2]
[355172965,1740943870834,-500.0,0.00025753,2]
[355172966,1740943870844,-644.38,0.00025753,2]
[355172967,1740943870854,-500.0,0.00025753,2]
[355172968,1740943870863,-500.0,0.00025753,2]
[355172969,1740943870873,-248.57387017,0.00025753,2]
[355172970,1740943870883,-498.01760497,0.00025753,2]
[355172971,1740943870893,-500.0,0.00025753,2]
[355172972,1740943870903,-1546.35,0.00025753,2]
[355172973,1740943870912,-793.28,0.00025753,2]
[355172974,1740943870922,-500.0,0.00025753,2]
[355172975,1740943870932,-500.0,0.00025753,2]
[355172976,1740943870942,-682.73,0.00025753,2]
[355172977,1740943870952,-582.95,0.00025753,2]
[355172978,1740943870962,-264.58,0.00025753,2]
[355172979,1740943870972,-500.0,0.00025753,2]
[355172980,1740943870982,-1412.58,0.00025753,2]
[355172981,1740943870991,-944.98,0.00025753,2]
[355172982,1740943871000,-500.0,0.00025753,2]
[355172983,1740943871010,-500.0,0.00025753,2]
[355172984,1740943871021,-675.32,0.00025753,2]
[355172985,1740943871033,-597.14,0.00025753,2]
[355172986,1740943871043,-588.07,0.00025753,2]
[355172987,1740943871053,-500.0,0.00025753,2]
[355172988,1740943871063,-944.06,0.00025753,2]
[355172989,1740943871073,-374.67,0.00025753,2]
[355172990,1740943871083,-577.96,0.00025753,2]
[355172991,1740943871093,-500.0,0.00025753,2]
[355172992,1740943871103,-500.0,0.00025753,2]
[355172993,1740943871112,-562.72,0.00025753,2]
[355172994,1740943871122,-662.55,0.00025753,2]
[355172995,1740943871132,-500.0,0.00025753,2]
[355172996,1740943871141,-606.71,0.00025753,2]
[355172997,1740943871151,-500.0,0.00025753,2]
[355172998,1740943871161,-500.0,0.00025753,2]
[355172999,1740943871171,-516.65,0.00025753,2]
[355173000,1740943871181,-500.0,0.00025753,2]
[355173001,1740943871191,-547.46,0.00025753,2]
[355173002,1740943871201,-500.84,0.00025753,2]
[355173003,1740943871212,-715.6,0.00025753,2]
[355173004,1740943871221,-653.24,0.00025753,2]
[355173005,1740943871231,-500.0,0.00025753,2]
[355173006,1740943871240,-722.93,0.00025753,2]
[355173007,1740943871250,-500.0,0.00025753,2]
[355173008,1740943871260,-1202.36,0.00025753,2]
[355173009,1740943871269,-500.0,0.00025753,2]
[355173010,1740943871281,-394.14271165,0.00025753,2]
[355173011,1740943871294,-500.0,0.00025753,2]
[355173012,1740943871303,-500.0,0.00025753,2]
[355173013,1740943871314,-3775.86,0.00025753,2]
[355173014,1740943871324,-500.0,0.00025753,2]
[355173015,1740943871334,-500.0,0.00025753,2]
[355173016,1740943871344,-739.02,0.00025753,2]
[355173017,1740943871353,-500.0,0.00025753,2]
[355173018,1740943871363,-569.32,0.00025753,2]
[355173019,1740943871374,-500.0,0.00025753,2]
[355173020,1740943871383,-500.0,0.00025753,2]
[355173021,1740943871393,-500.0,0.00025753,2]
[355173022,1740943871403,-500.0,0.00025753,2]
[355173023,1740943871412,-1046.76,0.00025753,2]
[355173024,1740943871422,-500.0,0.00025753,2]
[355173025,1740943871432,-500.0,0.00025753,2]
[355173026,1740943871441,-500.0,0.00025753,2]
[355173027,1740943871451,-666.68,0.00025753,2]
[355173028,1740943871460,-500.0,0.00025753,2]
[355173029,1740943871469,-589.18,0.00025753,2]
[355173030,1740943871479,-500.0,0.00025753,2]
[355173031,1740943871489,-428.11756016,0.00025753,2]
[355173032,1740943871498,-500.0,0.00025753,2]
[355173033,1740943871509,-500.0,0.00025753,2]
[355173034,1740943871519,-500.0,0.00025753,2]
[355173035,1740943871528,-679.94,0.00025753,2]
[355173036,1740943871538,-500.0,0.00025753,2]
[355173037,1740943871548,-318.28,0.00025753,2]
[355173038,1740943871559,-500.0,0.00025753,2]
[355173039,1740943871569,-679.32,0.00025753,2]
[355173040,1740943871579,-500.0,0.00025753,2]
[355173041,1740943871588,-500.0,0.00025753,2]
[355173042,1740943871600,-940.25,0.00025753,2]
[355173043,1740943871610,-789.14,0.00025753,2]
[355173044,1740943871619,-773.69,0.00025753,2]
[355173045,1740943871628,-405.91,0.0002586,2]
[355173046,1740943871638,-2000.0,0.00025905,4]
[355173047,1740943871647,-201.0,0.0002595,2]
[355173048,1740943871657,-4938.47031928,0.0002598,10]
[355173049,1740943871667,-405.91,0.00025986,2]
[355173050,1740943871677,-249.29586638,0.00026,5]
[355173051,1740943871686,-3868.51418625,0.00026,2]
[355173052,1740943871696,-3547.34,0.00026026,2]
[355173053,1740943871706,-151.0,0.00026027,7]
[355173054,1740943871715,-151.0,0.00026027,7]
[355173055,1740943871724,-391.683792,0.00026027,2]
[355173056,1740943871734,-191.324349,0.00026027,2]
[355173057,1740943871743,-205.74,0.00026027,2]
[355173058,1740943871752,-496.76,0.00026027,2]
[355173059,1740943871763,-500.0,0.00026027,2]
[355173060,1740943871772,-500.0,0.00026027,2]
[355173061,1740943871781,-161.078587,0.00026027,2]
[355173062,1740943871791,-488.51646908,0.00026027,2]
[355173063,1740943871800,-622.1,0.00026027,2]
[355173064,1740943871810,-500.0,0.00026027,2]
[355173065,1740943871819,-162.345232,0.00026027,2]
[355173066,1740943871830,-500.0,0.00026027,2]
[355173067,1740943871840,-500.0,0.00026027,2]
[355173068,1740943871850,-500.0,0.00026027,2]
[355173069,1740943871860,-500.0,0.00026027,2]
[355173070,1740943871870,-500.0,0.00026027,2]
[355173071,1740943871881,-500.0,0.00026027,2]
[355173072,1740943871890,-500.0,0.00026027,2]
[355173073,1740943871900,-500.0,0.00026027,2]
[355173074,1740943871910,-500.0,0.00026027,2]
[355173075,1740943871920,-219.52778592,0.00026027,2]
[355173076,1740943871930,-500.0,0.00026027,2]
[355173077,1740943871940,-500.0,0.00026027,2]
[355173078,1740943871949,-395.58,0.00026027,2]
[355173079,1740943871959,-500.0,0.00026027,2]
[355173080,1740943871969,-500.0,0.00026027,2]
[355173081,1740943871979,-500.0,0.00026027,2]
[355173082,1740943871989,-500.0,0.00026027,2]
[355173083,1740943871998,-500.0,0.00026027,2]
[355173084,1740943872008,-215.56617461,0.00026027,2]
[355173085,1740943872019,-500.0,0.00026027,2]
[355173086,1740943872030,-500.0,0.00026027,2]
[355173087,1740943872040,-500.0,0.00026027,2]
[355173088,1740943872049,-500.0,0.00026027,2]
[355173089,1740943872059,-500.0,0.00026027,2]
[355173090,1740943872070,-500.0,0.00026027,2]
[355173091,1740943872079,-215.43069742,0.00026027,2]
[355173092,1740943872089,-500.0,0.00026027,2]
[355173093,1740943872099,-500.0,0.00026027,2]
[355173094,1740943872111,-500.0,0.00026027,2]
[355173095,1740943872121,-500.0,0.00026027,2]
[355173096,1740943872132,-500.0,0.00026027,2]
[355173097,1740943872142,-500.0,0.00026027,2]
[355173098,1740943872152,-500.0,0.00026027,2]
[355173099,1740943872163,-500.0,0.00026027,2]
[355173100,1740943872172,-500.0,0.00026027,2]
[355173101,1740943872182,-500.0,0.00026027,2]
[355173102,1740943872191,-500.0,0.00026027,2]
[355173103,1740943872201,-500.0,0.00026027,2]
[355173104,1740943872211,-500.0,0.00026027,2]
[355173105,1740943872220,-500.0,0.00026027,2]
[355173106,1740943872229,-500.0,0.00026027,2]
[355173107,1740943872239,-500.0,0.00026027,2]
[355173108,1740943872248,-619.01,0.00026027,2]
[355173109,1740943872257,-500.0,0.00026027,2]
[355173110,1740943872267,-500.0,0.00026027,2]
[355173111,1740943872278,-500.0,0.00026027,2]
[355173112,1740943872288,-500.0,0.00026027,2]
[355173113,1740943872297,-500.0,0.00026027,2]
[355173114,1740943872306,-500.0,0.00026027,2]
[355173115,1740943872317,-500.0,0.00026027,2]
[355173116,1740943872326,-500.0,0.00026027,2]
[355173117,1740943872343,-500.0,0.00026027,2]
[355173118,1740943872353,-572.34,0.00026027,2]
[355173119,1740943872363,-500.48,0.00026027,2]
[355173120,1740943872373,-500.0,0.00026027,2]
[355173121,1740943872382,-500.0,0.00026027,2]
[355173122,1740943872392,-525.69,0.00026027,2]
[355173123,1740943872401,-500.0,0.00026027,2]
[355173124,1740943872411,-500.0,0.00026027,2]
[355173125,1740943872421,-500.0,0.00026027,2]
[355173126,1740943872430,-500.0,0.00026027,2]
[355173127,1740943872440,-500.0,0.00026027,2]
[355173128,1740943872449,-500.0,0.00026027,2]
[355173129,1740943872459,-500.0,0.00026027,2]
[355173130,1740943872469,-500.0,0.00026027,2]
[355173131,1740943872479,-889.51,0.00026027,2]
[355173132,1740943872489,-1454.29,0.00026027,2]
[355173133,1740943872499,-2697.14,0.00026027,2]
[355173134,1740943872509,-1113.19,0.00026027,2]
[355173135,1740943872520,-541.12,0.00026027,2]
[355173136,1740943872531,-1050.18,0.00026027,2]
[355173137,1740943872541,-147.76994049,0.00026027,2]
[355173138,1740943872609,-348.48556235,0.00026027,2]
[355173139,1740943872621,-1318.22449716,0.00026027,2]
[355173140,1740943872630,-548.89,0.00026027,2]
[355173141,1740943872640,-3.04550284,0.00026027,2]
[355173142,1740943872656,-369.12270208,0.00026027,2]
[355173143,1740943872668,-127.83179508,0.00026027,2]
[355173144,1740943872678,-1228.01,0.00026027,2]
[355173145,1740943872687,-153.24842155,0.00026027,2]
[355173146,1740943872703,-375.25157845,0.00026027,2]
[355173147,1740943872713,-500.0,0.00026027,2]
[355173148,1740943872723,-540.36,0.00026027,2]
[355173149,1740943872733,-500.0,0.00026027,2]
[355173150,1740943872743,-636.81,0.00026027,2]
[355173151,1740943872752,-500.0,0.00026027,2]
[355173152,1740943872762,-457.17628995,0.00026027,2]
[355173153,1740943872774,-328.17371005,0.00026027,2]
[355173154,1740943872783,-1133.26,0.00026027,2]
[355173155,1740943872793,-500.0,0.00026027,2]
[355173156,1740943872802,-1458.58,0.00026027,2]
[355173157,1740943872812,-581.88,0.00026027,2]
[355173158,1740943872822,-500.0,0.00026027,2]
[355173159,1740943872831,-907.66,0.00026027,2]
[355173160,1740943872841,-1024.84,0.00026027,2]
[355173161,1740943872851,-867.23,0.00026027,2]
[355173162,1740943872860,-500.0,0.00026027,2]
[355173163,1740943872870,-500.0,0.00026027,2]
[355173164,1740943872880,-500.0,0.00026027,2]
[355173165,1740943872889,-908.11,0.00026027,2]
[355173166,1740943872899,-746.51,0.00026027,2]
[355173167,1740943872909,-500.0,0.00026027,2]
[355173168,1740943872920,-500.0,0.00026027,2]
[355173169,1740943872929,-752.29,0.00026027,2]
[355173170,1740943872938,-999.46,0.00026027,2]
[355173171,1740943872948,-500.0,0.00026027,2]
[355173172,1740943872958,-301.07110115,0.00026027,2]
[355173173,1740943872974,-842.42889885,0.00026027,2]
[355173174,1740943872984,-500.0,0.00026027,2]
[355173175,1740943872994,-644.38,0.00026027,2]
[355173176,1740943873004,-209.49,0.00026027,2]
[355173177,1740943873014,-500.0,0.00026027,2]
[355173178,1740943873024,-500.0,0.00026027,2]
[355173179,1740943873038,-1546.35,0.00026027,2]
[355173180,1740943873048,-793.28,0.00026027,2]
[355173181,1740943873058,-500.0,0.00026027,2]
[355173182,1740943873069,-500.0,0.00026027,2]
[355173183,1740943873080,-682.73,0.00026027,2]
[355173184,1740943873092,-582.95,0.00026027,2]
[355173185,1740943873104,-500.0,0.00026027,2]
[355173186,1740943873113,-1412.58,0.00026027,2]
[355173187,1740943873123,-944.98,0.00026027,2]
[355173188,1740943873134,-500.0,0.00026027,2]
[355173189,1740943873144,-500.0,0.00026027,2]
[355173190,1740943873155,-675.32,0.00026027,2]
[355173191,1740943873165,-597.14,0.00026027,2]
[355173192,1740943873175,-588.07,0.00026027,2]
[355173193,1740943873185,-500.0,0.00026027,2]
[355173194,1740943873196,-944.06,0.00026027,2]
[355173195,1740943873208,-577.96,0.00026027,2]
[355173196,1740943873285,-500.0,0.00026027,2]
[355173197,1740943873296,-500.0,0.00026027,2]
[355173198,1740943873306,-562.72,0.00026027,2]
[355173199,1740943873316,-662.55,0.00026027,2]
[355173200,1740943873326,-500.0,0.00026027,2]
[355173201,1740943873335,-606.71,0.00026027,2]
[355173202,1740943873346,-500.0,0.00026027,2]
[355173203,1740943873356,-500.0,0.00026027,2]
[355173204,1740943873366,-516.65,0.00026027,2]
[355173205,1740943873377,-500.0,0.00026027,2]
[355173206,1740943873386,-500.84,0.00026027,2]
[355173207,1740943873396,-715.6,0.00026027,2]
[355173208,1740943873406,-653.24,0.00026027,2]
[355173209,1740943873416,-500.0,0.00026027,2]
[355173210,1740943873425,-722.93,0.00026027,2]
[355173211,1740943873435,-500.0,0.00026027,2]
[355173212,1740943873445,-1202.36,0.00026027,2]
[355173213,1740943873455,-500.0,0.00026027,2]
[355173214,1740943873464,-500.0,0.00026027,2]
[355173215,1740943873474,-500.0,0.00026027,2]
[355173216,1740943873485,-3775.86,0.00026027,2]
[355173217,1740943873495,-500.0,0.00026027,2]
[355173218,1740943873504,-500.0,0.00026027,2]
[355173219,1740943873514,-739.02,0.00026027,2]
[355173220,1740943873524,-346.98345092,0.00026027,2]
[355173221,1740943873534,-569.32,0.00026027,2]
[355173222,1740943873544,-500.0,0.00026027,2]
[355173223,1740943873554,-500.0,0.00026027,2]
[355173224,1740943873564,-500.0,0.00026027,2]
[355173225,1740943873574,-191.62,0.00026027,2]
[355173226,1740943873583,-1046.76,0.00026027,2]
[355173227,1740943873593,-500.0,0.00026027,2]
[355173228,1740943873603,-500.0,0.00026027,2]
[355173229,1740943873613,-666.68,0.00026027,2]
[355173230,1740943873623,-500.0,0.00026027,2]
[355173231,1740943873633,-500.0,0.00026027,2]
[355173232,1740943873642,-589.18,0.00026027,2]
[355173233,1740943873651,-256.91,0.00026027,2]
[355173234,1740943873662,-500.0,0.00026027,2]
[355173235,1740943873672,-679.94,0.00026027,2]
[355173236,1740943873682,-500.0,0.00026027,2]
[355173237,1740943873691,-500.0,0.00026027,2]
[355173238,1740943873701,-500.0,0.00026027,2]
[355173239,1740943873710,-679.32,0.00026027,2]
[355173240,1740943873719,-500.0,0.00026027,2]
[355173241,1740943873729,-940.25,0.00026027,2]
[355173242,1740943873739,-789.14,0.00026027,2]
[355173243,1740943873748,-773.69,0.00026027,2]
[355173244,1740943873758,-4762.29657338,0.00026038,4]
[355173245,1740943873767,-256.49519967,0.00026065,2]
[355173246,1740943873777,-164.70311,0.00026091,2]
[355173247,1740943873788,-405.91,0.00026112,2]
[355173248,1740943873797,-5976.78913812,0.00026163,2]
[355173249,1740943873807,-405.91,0.00026238,2]
[355173250,1740943873816,-406.48,0.00026298,120]
[355173251,1740943873826,-3547.34,0.000263,2]
[355173252,1740943873835,-391.683792,0.00026301,2]
[355173253,1740943873844,-191.324349,0.00026301,2]
[355173254,1740943873854,-500.0,0.00026301,2]
[355173255,1740943873863,-500.0,0.00026301,2]
[355173256,1740943873872,-228.0576823,0.00026301,2]
[355173257,1740943873883,-500.0,0.00026301,2]
[355173258,1740943873892,-362.53267737,0.00026301,2]
[355173259,1740943873902,-500.0,0.00026301,2]
[355173260,1740943873911,-500.0,0.00026301,2]
[355173261,1740943873921,-341.34317583,0.00026301,2]
[355173262,1740943873931,-500.0,0.00026301,2]
[355173263,1740943873940,-500.0,0.00026301,2]
[355173264,1740943873950,-619.68928666,0.00026301,2]
[355173265,1740943873960,-500.0,0.00026301,2]
[355173266,1740943873970,-364.34569841,0.00026301,2]
[355173267,1740943874172,-135.65430159,0.00026301,2]
[355173268,1740943874183,-500.0,0.00026301,2]
[355173269,1740943874193,-500.0,0.00026301,2]
[355173270,1740943874203,-500.0,0.00026301,2]
[355173271,1740943874213,-500.0,0.00026301,2]
[355173272,1740943874223,-500.0,0.00026301,2]
[355173273,1740943874233,-500.0,0.00026301,2]
[355173274,1740943874244,-500.0,0.00026301,2]
[355173275,1740943874254,-500.0,0.00026301,2]
[355173276,1740943874264,-500.0,0.00026301,2]
[355173277,1740943874274,-89.34569841,0.00026301,2]
[355173278,1740943874317,-410.65430159,0.00026301,2]
[355173279,1740943874327,-500.0,0.00026301,2]
[355173280,1740943874337,-324.00903708,0.00026301,2]
[355173281,1740943874519,-441.22667999,0.00024657,2]
[355173282,1740943874534,-58.77332001,0.00024657,2]
[355173283,1740943874545,-500.0,0.00024931,2]
[355173284,1740943874555,-175.99096292,0.00026301,2]
[355173285,1740943874565,-500.0,0.00026301,2]
[355173286,1740943874575,-500.0,0.00026301,2]
[355173287,1740943874584,-500.0,0.00026301,2]
[355173288,1740943874595,-500.0,0.00026301,2]
[355173289,1740943874605,-500.0,0.00026301,2]
[355173290,1740943874615,-500.0,0.00026301,2]
[355173291,1740943874625,-209.01639048,0.00026301,2]
[355173292,1740943874638,-290.98360952,0.00026301,2]
[355173293,1740943874648,-500.0,0.00026301,2]
[355173294,1740943874657,-336.09539705,0.00026301,2]